[Event "Titled Tuesday Blitz July 4 Early 2023"]
[White "Karttunen, Mika"]
[Black "FromTexas54"]
[WhiteFideId "502081"]
[WhiteElo "2606"]
[BlackElo "2429"]
[Result "1/2-1/2"]
[Round "9"]
[TimeControl "180+2"]
[Date "2023.07.04"]
[WhiteClock "0:00:22"]
[BlackClock "0:00:08"]
[Board "71"]

1. d4 {[%clk 0:03:00]}  Nf6 {[%clk 0:02:58]} 2. c4 {[%clk 0:03:00]}  g6 {[%clk 0:02:59]} 3. f3 {[%clk 0:02:59]}  Bg7 {[%clk 0:02:58]} 4. e4 {[%clk 0:02:57]}  d6 {[%clk 0:02:59]} 5. Nc3 {[%clk 0:02:57]}  O-O {[%clk 0:02:59]} 6. Be3 {[%clk 0:02:58]}  Nc6 {[%clk 0:02:58]} 7. Nge2 {[%clk 0:02:56]}  a6 {[%clk 0:02:58]} 8. d5 {[%clk 0:02:46]}  Ne5 {[%clk 0:02:57]} 9. Ng3 {[%clk 0:02:43]}  c6 {[%clk 0:02:49]} 10. Be2 {[%clk 0:02:42]}  b5 {[%clk 0:02:47]} 11. cxb5 {[%clk 0:02:34]}  cxd5 {[%clk 0:02:44]} 12. exd5 {[%clk 0:02:32]}  axb5 {[%clk 0:02:36]} 13. Bxb5 {[%clk 0:02:31]}  Qa5 {[%clk 0:02:25]} 14. O-O {[%clk 0:02:28]}  Ba6 {[%clk 0:02:17]} 15. a4 {[%clk 0:02:20]}  Bxb5 {[%clk 0:01:58]} 16. axb5 {[%clk 0:01:56]}  Qb4 {[%clk 0:01:57]} 17. Ra4 {[%clk 0:01:21]}  Qxb2 {[%clk 0:01:45]} 18. Nge2 {[%clk 0:01:21]}  h5 {[%clk 0:01:07]} 19. Qb1 {[%clk 0:01:09]}  Qxb1 {[%clk 0:01:04]} 20. Rxb1 {[%clk 0:01:08]}  Rxa4 {[%clk 0:01:05]} 21. Nxa4 {[%clk 0:01:07]}  Nxd5 {[%clk 0:01:05]} 22. Bd4 {[%clk 0:01:02]}  Nc4 {[%clk 0:00:58]} 23. b6 {[%clk 0:00:56]}  Bxd4+ {[%clk 0:00:53]} 24. Nxd4 {[%clk 0:00:56]}  Ndxb6 {[%clk 0:00:47]} 25. Rxb6 {[%clk 0:00:36]}  Nxb6 {[%clk 0:00:42]} 26. Nxb6 {[%clk 0:00:37]}  Rb8 {[%clk 0:00:39]} 27. Nd5 {[%clk 0:00:37]}  Rb1+ {[%clk 0:00:35]} 28. Kf2 {[%clk 0:00:37]}  Rd1 {[%clk 0:00:34]} 29. Nxe7+ {[%clk 0:00:36]}  Kf8 {[%clk 0:00:34]} 30. Nec6 {[%clk 0:00:36]}  Ra1 {[%clk 0:00:28]} 31. Ne2 {[%clk 0:00:36]}  Ke8 {[%clk 0:00:26]} 32. Nb4 {[%clk 0:00:35]}  Kd7 {[%clk 0:00:24]} 33. Nd5 {[%clk 0:00:33]}  Ra5 {[%clk 0:00:23]} 34. Ndc3 {[%clk 0:00:32]}  Ra3 {[%clk 0:00:20]} 35. Ke3 {[%clk 0:00:32]}  Ke6 {[%clk 0:00:20]} 36. Kd3 {[%clk 0:00:30]}  g5 {[%clk 0:00:19]} 37. g3 {[%clk 0:00:30]}  f5 {[%clk 0:00:18]} 38. h3 {[%clk 0:00:30]}  Kf6 {[%clk 0:00:16]} 39. Nd4 {[%clk 0:00:30]}  Ra1 {[%clk 0:00:15]} 40. Nd5+ {[%clk 0:00:29]}  Ke5 {[%clk 0:00:13]} 41. Nc3 {[%clk 0:00:27]}  Rh1 {[%clk 0:00:12]} 42. Nde2 {[%clk 0:00:20]}  Rxh3 {[%clk 0:00:10]} 43. Kd2 {[%clk 0:00:19]}  f4 {[%clk 0:00:09]} 44. gxf4+ {[%clk 0:00:19]}  gxf4 {[%clk 0:00:10]} 45. Ng1 {[%clk 0:00:19]}  Rg3 {[%clk 0:00:10]} 46. Nce2 {[%clk 0:00:19]}  Rg2 {[%clk 0:00:10]} 47. Ke1 {[%clk 0:00:19]}  d5 {[%clk 0:00:10]} 48. Kf1 {[%clk 0:00:19]}  Rg8 {[%clk 0:00:09]} 49. Nc1 {[%clk 0:00:19]}  Kd4 {[%clk 0:00:09]} 50. Kf2 {[%clk 0:00:20]}  Ra8 {[%clk 0:00:08]} 51. Nge2+ {[%clk 0:00:20]}  Ke5 {[%clk 0:00:07]} 52. Nd3+ {[%clk 0:00:20]}  Kf5 {[%clk 0:00:08]} 53. Ndxf4 {[%clk 0:00:21]}  Ra2 {[%clk 0:00:08]} 54. Nxd5 {[%clk 0:00:21]}  h4 {[%clk 0:00:07]} 55. Ne3+ {[%clk 0:00:21]}  Kg5 {[%clk 0:00:07]} 56. Ng4 {[%clk 0:00:21]}  Rb2 {[%clk 0:00:06]} 57. Nh2 {[%clk 0:00:21]}  h3 {[%clk 0:00:06]} 58. f4+ {[%clk 0:00:19]}  Kf5 {[%clk 0:00:06]} 59. Kf3 {[%clk 0:00:20]}  Rxe2 {[%clk 0:00:06]} 60. Kxe2 {[%clk 0:00:20]}  Kxf4 {[%clk 0:00:07]} 61. Kf2 {[%clk 0:00:21]}  Kf5 {[%clk 0:00:07]} 62. Kg3 {[%clk 0:00:21]}  Kg6 {[%clk 0:00:08]} 63. Kxh3 {[%clk 0:00:22]} 1/2-1/2


[Site "https://www.chess.com"]

[Event "Titled Tuesday Blitz July 4 Early 2023"]
[White "Pasti, Aron"]
[Black "MAHanif"]
[WhiteFideId "785857"]
[WhiteElo "2574"]
[BlackElo "2382"]
[Result "1-0"]
[Round "9"]
[TimeControl "180+2"]
[Date "2023.07.04"]
[WhiteClock "0:00:25"]
[BlackClock "0:00:04"]
[Board "72"]

1. e4 {[%clk 0:03:00]}  c5 {[%clk 0:02:57]} 2. Nf3 {[%clk 0:02:59]}  Nc6 {[%clk 0:02:57]} 3. d4 {[%clk 0:02:57]}  cxd4 {[%clk 0:02:57]} 4. Nxd4 {[%clk 0:02:58]}  g6 {[%clk 0:02:57]} 5. c4 {[%clk 0:02:58]}  Bg7 {[%clk 0:02:57]} 6. Be3 {[%clk 0:02:50]}  Nf6 {[%clk 0:02:57]} 7. Nc3 {[%clk 0:02:51]}  O-O {[%clk 0:02:56]} 8. Be2 {[%clk 0:02:51]}  e6 {[%clk 0:02:57]} 9. O-O {[%clk 0:02:32]}  d5 {[%clk 0:02:56]} 10. exd5 {[%clk 0:02:13]}  exd5 {[%clk 0:02:54]} 11. c5 {[%clk 0:02:13]}  Re8 {[%clk 0:02:51]} 12. Ndb5 {[%clk 0:02:13]}  Bf8 {[%clk 0:02:40]} 13. Bg5 {[%clk 0:01:47]}  d4 {[%clk 0:02:18]} 14. Bxf6 {[%clk 0:01:43]}  Qxf6 {[%clk 0:02:12]} 15. Nd5 {[%clk 0:01:43]}  Qe5 {[%clk 0:02:04]} 16. Nbc7 {[%clk 0:01:39]}  Rd8 {[%clk 0:01:24]} 17. f4 {[%clk 0:01:26]}  Qg7 {[%clk 0:01:13]} 18. Nxa8 {[%clk 0:01:18]}  Rxd5 {[%clk 0:01:08]} 19. Nc7 {[%clk 0:01:18]}  Rxc5 {[%clk 0:01:04]} 20. Ne8 {[%clk 0:01:18]}  Qh6 {[%clk 0:00:59]} 21. Nf6+ {[%clk 0:01:15]}  Kg7 {[%clk 0:00:51]} 22. Ne4 {[%clk 0:01:10]}  Rd5 {[%clk 0:00:48]} 23. Bc4 {[%clk 0:01:10]}  Rd8 {[%clk 0:00:47]} 24. Ng5 {[%clk 0:01:09]}  Rd7 {[%clk 0:00:40]} 25. Rc1 {[%clk 0:01:01]}  Re7 {[%clk 0:00:32]} 26. Bb5 {[%clk 0:00:54]}  f6 {[%clk 0:00:14]} 27. Bxc6 {[%clk 0:00:53]}  bxc6 {[%clk 0:00:14]} 28. Qxd4 {[%clk 0:00:52]}  Qh4 {[%clk 0:00:12]} 29. Rxc6 {[%clk 0:00:51]}  Qg4 {[%clk 0:00:12]} 30. Qxf6+ {[%clk 0:00:50]}  Kg8 {[%clk 0:00:12]} 31. Rd6 {[%clk 0:00:38]}  Qf5 {[%clk 0:00:12]} 32. Qxf5 {[%clk 0:00:29]}  Bxf5 {[%clk 0:00:12]} 33. Rd8 {[%clk 0:00:29]}  Kg7 {[%clk 0:00:12]} 34. Nxh7 {[%clk 0:00:25]}  Kxh7 {[%clk 0:00:08]} 35. Rxf8 {[%clk 0:00:25]}  Rb7 {[%clk 0:00:09]} 36. b3 {[%clk 0:00:25]}  Rd7 {[%clk 0:00:08]} 37. h3 {[%clk 0:00:25]}  Rd2 {[%clk 0:00:07]} 38. Rf2 {[%clk 0:00:26]}  Rd1+ {[%clk 0:00:06]} 39. Kh2 {[%clk 0:00:26]}  Rd4 {[%clk 0:00:04]} 40. g4 {[%clk 0:00:25]} 1-0


[Site "https://www.chess.com"]

[Event "Titled Tuesday Blitz July 4 Early 2023"]
[White "Parpiev, Isaak"]
[Black "Andreassen, Lars"]
[WhiteFideId "34281576"]
[BlackFideId "1504878"]
[WhiteElo "2562"]
[BlackElo "2278"]
[Result "1-0"]
[Round "9"]
[TimeControl "180+2"]
[Date "2023.07.04"]
[WhiteClock "0:02:03"]
[BlackClock "0:00:41"]
[Board "74"]

1. Nf3 {[%clk 0:02:56]}  d5 {[%clk 0:02:17]} 2. b3 {[%clk 0:02:46]}  Nf6 {[%clk 0:02:15]} 3. Bb2 {[%clk 0:02:46]}  g6 {[%clk 0:02:16]} 4. c4 {[%clk 0:02:44]}  c6 {[%clk 0:02:14]} 5. e3 {[%clk 0:02:44]}  Bg7 {[%clk 0:02:14]} 6. Qc2 {[%clk 0:02:39]}  O-O {[%clk 0:02:13]} 7. d3 {[%clk 0:02:35]}  Bf5 {[%clk 0:02:10]} 8. Nbd2 {[%clk 0:02:28]}  Na6 {[%clk 0:02:06]} 9. e4 {[%clk 0:02:19]}  dxe4 {[%clk 0:01:55]} 10. dxe4 {[%clk 0:02:20]}  Nb4 {[%clk 0:01:24]} 11. Qb1 {[%clk 0:02:19]}  Bg4 {[%clk 0:00:53]} 12. Be2 {[%clk 0:02:05]}  Bxf3 {[%clk 0:00:51]} 13. Nxf3 {[%clk 0:02:05]}  Nd3+ {[%clk 0:00:41]} 14. Qxd3 {[%clk 0:02:03]} 1-0


[Site "https://www.chess.com"]

[Event "Titled Tuesday Blitz July 4 Early 2023"]
[White "Deng, Henry"]
[Black "Matamoros Franco, Carlos S."]
[WhiteFideId "30965454"]
[BlackFideId "3600017"]
[WhiteElo "2512"]
[BlackElo "2632"]
[Result "1-0"]
[Round "9"]
[TimeControl "180+2"]
[Date "2023.07.04"]
[WhiteClock "0:00:01"]
[BlackClock "0:00:01"]
[Board "77"]

1. e4 {[%clk 0:03:00]}  e6 {[%clk 0:02:58]} 2. d4 {[%clk 0:02:59]}  d5 {[%clk 0:02:59]} 3. Nd2 {[%clk 0:02:59]}  Nc6 {[%clk 0:02:58]} 4. Ngf3 {[%clk 0:02:58]}  Nf6 {[%clk 0:02:57]} 5. Bd3 {[%clk 0:02:45]}  Nb4 {[%clk 0:02:56]} 6. O-O {[%clk 0:02:30]}  Nxd3 {[%clk 0:02:51]} 7. cxd3 {[%clk 0:02:29]}  Be7 {[%clk 0:02:48]} 8. Qe2 {[%clk 0:02:19]}  O-O {[%clk 0:02:41]} 9. Rd1 {[%clk 0:02:17]}  a5 {[%clk 0:02:38]} 10. Nf1 {[%clk 0:02:16]}  a4 {[%clk 0:02:28]} 11. a3 {[%clk 0:02:15]}  b6 {[%clk 0:02:26]} 12. Bf4 {[%clk 0:01:54]}  Ba6 {[%clk 0:02:15]} 13. Qe3 {[%clk 0:01:35]}  c5 {[%clk 0:01:56]} 14. Rac1 {[%clk 0:01:16]}  Rc8 {[%clk 0:01:46]} 15. Ng3 {[%clk 0:01:15]}  Re8 {[%clk 0:01:36]} 16. dxc5 {[%clk 0:00:37]}  bxc5 {[%clk 0:01:33]} 17. d4 {[%clk 0:00:37]}  Qb6 {[%clk 0:01:26]} 18. dxc5 {[%clk 0:00:19]}  Bxc5 {[%clk 0:01:20]} 19. Qe1 {[%clk 0:00:09]}  Nxe4 {[%clk 0:01:19]} 20. Nxe4 {[%clk 0:00:09]}  dxe4 {[%clk 0:01:19]} 21. Qxe4 {[%clk 0:00:10]}  Bxf2+ {[%clk 0:01:16]} 22. Kh1 {[%clk 0:00:10]}  Bb7 {[%clk 0:00:47]} 23. Qe2 {[%clk 0:00:09]}  Bxf3 {[%clk 0:00:35]} 24. Qxf3 {[%clk 0:00:07]}  Bd4 {[%clk 0:00:33]} 25. Rxc8 {[%clk 0:00:06]}  Rxc8 {[%clk 0:00:32]} 26. h3 {[%clk 0:00:05]}  g6 {[%clk 0:00:31]} 27. Qe4 {[%clk 0:00:05]}  Bg7 {[%clk 0:00:29]} 28. Qxa4 {[%clk 0:00:05]}  Qxb2 {[%clk 0:00:29]} 29. Qd7 {[%clk 0:00:06]}  Ra8 {[%clk 0:00:16]} 30. a4 {[%clk 0:00:06]}  h5 {[%clk 0:00:15]} 31. Bc7 {[%clk 0:00:05]}  Be5 {[%clk 0:00:12]} 32. Rd2 {[%clk 0:00:03]}  Qa1+ {[%clk 0:00:12]} 33. Rd1 {[%clk 0:00:03]}  Qc3 {[%clk 0:00:12]} 34. Bxe5 {[%clk 0:00:03]}  Qxe5 {[%clk 0:00:12]} 35. Qc6 {[%clk 0:00:03]}  Qa5 {[%clk 0:00:12]} 36. Rd7 {[%clk 0:00:03]}  Qe1+ {[%clk 0:00:06]} 37. Kh2 {[%clk 0:00:03]}  Qe5+ {[%clk 0:00:07]} 38. Kh1 {[%clk 0:00:03]}  Rb8 {[%clk 0:00:07]} 39. Rd1 {[%clk 0:00:03]}  Qe2 {[%clk 0:00:07]} 40. Rc1 {[%clk 0:00:01]}  Kg7 {[%clk 0:00:05]} 41. a5 {[%clk 0:00:02]}  Qe5 {[%clk 0:00:05]} 42. a6 {[%clk 0:00:02]}  Rb2 {[%clk 0:00:06]} 43. a7 {[%clk 0:00:02]}  Ra2 {[%clk 0:00:06]} 44. a8=Q {[%clk 0:00:02]}  Rxa8 {[%clk 0:00:04]} 45. Qxa8 {[%clk 0:00:03]}  Qf4 {[%clk 0:00:04]} 46. Qa1+ {[%clk 0:00:03]}  e5 {[%clk 0:00:04]} 47. Rf1 {[%clk 0:00:03]}  Qg3 {[%clk 0:00:03]} 48. Rf3 {[%clk 0:00:03]}  Qg5 {[%clk 0:00:02]} 49. Rf1 {[%clk 0:00:03]}  Qg3 {[%clk 0:00:02]} 50. Re1 {[%clk 0:00:03]}  f6 {[%clk 0:00:02]} 51. Rf1 {[%clk 0:00:03]}  g5 {[%clk 0:00:01]} 52. Qa7+ {[%clk 0:00:03]}  Kg6 {[%clk 0:00:01]} 53. Qb8 {[%clk 0:00:03]}  g4 {[%clk 0:00:01]} 54. Qg8+ {[%clk 0:00:03]}  Kh6 {[%clk 0:00:01]} 55. Rxf6# {[%clk 0:00:01]} 1-0


[Site "https://www.chess.com"]

[Event "Titled Tuesday Blitz July 4 Early 2023"]
[White "Jaskolka, Tomasz"]
[Black "Korkmaz, Necmettin"]
[WhiteFideId "1170791"]
[BlackFideId "6303285"]
[WhiteElo "2598"]
[BlackElo "2508"]
[Result "0-1"]
[Round "9"]
[TimeControl "180+2"]
[Date "2023.07.04"]
[WhiteClock "0:00:05"]
[BlackClock "0:01:46"]
[Board "81"]

1. d4 {[%clk 0:03:00]}  d5 {[%clk 0:02:56]} 2. Nc3 {[%clk 0:03:00]}  Nf6 {[%clk 0:02:56]} 3. Bf4 {[%clk 0:02:58]}  a6 {[%clk 0:02:55]} 4. e3 {[%clk 0:02:57]}  c5 {[%clk 0:02:55]} 5. dxc5 {[%clk 0:02:54]}  Nc6 {[%clk 0:02:55]} 6. Nf3 {[%clk 0:02:43]}  e6 {[%clk 0:02:54]} 7. Na4 {[%clk 0:02:40]}  Bxc5 {[%clk 0:02:53]} 8. Nxc5 {[%clk 0:02:33]}  Qa5+ {[%clk 0:02:53]} 9. c3 {[%clk 0:02:32]}  Qxc5 {[%clk 0:02:53]} 10. Bd3 {[%clk 0:02:31]}  O-O {[%clk 0:02:52]} 11. O-O {[%clk 0:02:26]}  Re8 {[%clk 0:02:52]} 12. Ne5 {[%clk 0:02:26]}  Nxe5 {[%clk 0:02:49]} 13. Bxe5 {[%clk 0:02:26]}  Nd7 {[%clk 0:02:50]} 14. Bd4 {[%clk 0:02:06]}  Qd6 {[%clk 0:02:49]} 15. e4 {[%clk 0:02:05]}  e5 {[%clk 0:02:47]} 16. Be3 {[%clk 0:02:06]}  Nf6 {[%clk 0:02:44]} 17. exd5 {[%clk 0:02:02]}  Qxd5 {[%clk 0:02:43]} 18. Bg5 {[%clk 0:01:43]}  e4 {[%clk 0:02:39]} 19. Bxf6 {[%clk 0:01:43]}  exd3 {[%clk 0:02:39]} 20. Bd4 {[%clk 0:01:43]}  Bf5 {[%clk 0:02:36]} 21. Re1 {[%clk 0:01:36]}  Qd7 {[%clk 0:02:30]} 22. Qd2 {[%clk 0:01:25]}  Bg6 {[%clk 0:02:25]} 23. f3 {[%clk 0:01:14]}  h6 {[%clk 0:02:25]} 24. Kf2 {[%clk 0:01:14]}  Qb5 {[%clk 0:02:21]} 25. b3 {[%clk 0:01:09]}  Qd5 {[%clk 0:02:17]} 26. Re3 {[%clk 0:01:04]}  Rxe3 {[%clk 0:02:16]} 27. Qxe3 {[%clk 0:01:03]}  Rd8 {[%clk 0:02:13]} 28. Re1 {[%clk 0:00:59]}  b5 {[%clk 0:02:04]} 29. Qe5 {[%clk 0:00:30]}  Qxe5 {[%clk 0:02:04]} 30. Rxe5 {[%clk 0:00:30]}  b4 {[%clk 0:02:04]} 31. Ke3 {[%clk 0:00:30]}  bxc3 {[%clk 0:02:02]} 32. Bxc3 {[%clk 0:00:30]}  Rc8 {[%clk 0:01:55]} 33. Kd2 {[%clk 0:00:30]}  Rc6 {[%clk 0:01:54]} 34. f4 {[%clk 0:00:23]}  f6 {[%clk 0:01:54]} 35. Re3 {[%clk 0:00:18]}  h5 {[%clk 0:01:53]} 36. g3 {[%clk 0:00:18]}  Bf5 {[%clk 0:01:52]} 37. Re8+ {[%clk 0:00:14]}  Kf7 {[%clk 0:01:53]} 38. Rd8 {[%clk 0:00:15]}  Re6 {[%clk 0:01:52]} 39. Rd7+ {[%clk 0:00:13]}  Kg6 {[%clk 0:01:52]} 40. Rd8 {[%clk 0:00:08]}  Re2+ {[%clk 0:01:52]} 41. Kd1 {[%clk 0:00:08]}  Rxh2 {[%clk 0:01:49]} 42. Re8 {[%clk 0:00:04]}  Bg4+ {[%clk 0:01:47]} 43. Kc1 {[%clk 0:00:04]}  Rc2+ {[%clk 0:01:46]} 44. Kb1 {[%clk 0:00:04]}  Rxc3 {[%clk 0:01:47]} 45. Rd8 {[%clk 0:00:05]}  Bf5 {[%clk 0:01:46]} 0-1


[Site "https://www.chess.com"]

[Event "Titled Tuesday Blitz July 4 Early 2023"]
[White "Postlmayer, Jakob"]
[Black "Piesik, Piotr"]
[WhiteFideId "1643622"]
[BlackFideId "1136194"]
[WhiteElo "2502"]
[BlackElo "2589"]
[Result "0-1"]
[Round "9"]
[TimeControl "180+2"]
[Date "2023.07.04"]
[WhiteClock "0:00:12"]
[BlackClock "0:00:19"]
[Board "82"]

1. e4 {[%clk 0:03:00]}  g6 {[%clk 0:02:54]} 2. d4 {[%clk 0:03:00]}  Bg7 {[%clk 0:02:55]} 3. c4 {[%clk 0:03:00]}  d6 {[%clk 0:02:53]} 4. Nc3 {[%clk 0:03:00]}  Nd7 {[%clk 0:02:54]} 5. f4 {[%clk 0:02:58]}  e5 {[%clk 0:02:54]} 6. fxe5 {[%clk 0:02:57]}  dxe5 {[%clk 0:02:55]} 7. d5 {[%clk 0:02:56]}  Ngf6 {[%clk 0:02:55]} 8. Be2 {[%clk 0:02:54]}  O-O {[%clk 0:02:55]} 9. Nf3 {[%clk 0:02:54]}  Nc5 {[%clk 0:02:54]} 10. Qc2 {[%clk 0:02:51]}  a5 {[%clk 0:02:52]} 11. Be3 {[%clk 0:02:51]}  Nfd7 {[%clk 0:02:51]} 12. O-O {[%clk 0:02:46]}  f5 {[%clk 0:02:51]} 13. exf5 {[%clk 0:02:44]}  gxf5 {[%clk 0:02:52]} 14. Bg5 {[%clk 0:02:35]}  Qe8 {[%clk 0:02:40]} 15. Nb5 {[%clk 0:02:35]}  Na6 {[%clk 0:02:40]} 16. Rae1 {[%clk 0:02:30]}  Qg6 {[%clk 0:02:36]} 17. Qd2 {[%clk 0:02:10]}  Ndc5 {[%clk 0:02:30]} 18. Nh4 {[%clk 0:02:01]}  Qb6 {[%clk 0:02:30]} 19. Be3 {[%clk 0:01:58]}  Bd7 {[%clk 0:02:24]} 20. Kh1 {[%clk 0:01:56]}  Rae8 {[%clk 0:02:13]} 21. a3 {[%clk 0:01:47]}  a4 {[%clk 0:02:13]} 22. Qc2 {[%clk 0:01:39]}  e4 {[%clk 0:01:46]} 23. g3 {[%clk 0:01:30]}  Rc8 {[%clk 0:01:35]} 24. Rf2 {[%clk 0:01:28]}  c6 {[%clk 0:01:32]} 25. dxc6 {[%clk 0:01:28]}  bxc6 {[%clk 0:01:33]} 26. Nd4 {[%clk 0:01:28]}  Nd3 {[%clk 0:01:22]} 27. Bxd3 {[%clk 0:01:17]}  Bxd4 {[%clk 0:01:22]} 28. Bxd4 {[%clk 0:01:14]}  Qxd4 {[%clk 0:01:23]} 29. Bf1 {[%clk 0:01:13]}  Nc5 {[%clk 0:01:22]} 30. Rd2 {[%clk 0:01:03]}  Qe5 {[%clk 0:01:22]} 31. Ng2 {[%clk 0:01:02]}  Be6 {[%clk 0:01:18]} 32. Nf4 {[%clk 0:01:02]}  Bf7 {[%clk 0:01:18]} 33. Bh3 {[%clk 0:00:55]}  Rcd8 {[%clk 0:01:17]} 34. Red1 {[%clk 0:00:55]}  Rxd2 {[%clk 0:01:17]} 35. Qxd2 {[%clk 0:00:55]}  e3 {[%clk 0:01:17]} 36. Qd4 {[%clk 0:00:54]}  Qxd4 {[%clk 0:01:16]} 37. Rxd4 {[%clk 0:00:55]}  Rb8 {[%clk 0:01:15]} 38. Bxf5 {[%clk 0:00:53]}  Rxb2 {[%clk 0:01:15]} 39. Kg1 {[%clk 0:00:48]}  Rd2 {[%clk 0:01:12]} 40. Rxd2 {[%clk 0:00:44]}  exd2 {[%clk 0:01:12]} 41. Bc2 {[%clk 0:00:44]}  Bxc4 {[%clk 0:01:12]} 42. Kf2 {[%clk 0:00:44]}  Bb3 {[%clk 0:00:56]} 43. Ke3 {[%clk 0:00:40]}  Bxc2 {[%clk 0:00:56]} 44. Kxd2 {[%clk 0:00:40]}  Bb3 {[%clk 0:00:55]} 45. Ke3 {[%clk 0:00:40]}  Kf7 {[%clk 0:00:54]} 46. g4 {[%clk 0:00:38]}  Ne6 {[%clk 0:00:53]} 47. Ne2 {[%clk 0:00:36]}  Nc7 {[%clk 0:00:50]} 48. h4 {[%clk 0:00:34]}  Nb5 {[%clk 0:00:50]} 49. g5 {[%clk 0:00:29]}  Nxa3 {[%clk 0:00:50]} 50. Kd2 {[%clk 0:00:26]}  Nb5 {[%clk 0:00:49]} 51. Kc1 {[%clk 0:00:24]}  a3 {[%clk 0:00:48]} 52. h5 {[%clk 0:00:24]}  c5 {[%clk 0:00:46]} 53. Nf4 {[%clk 0:00:20]}  Nd6 {[%clk 0:00:40]} 54. g6+ {[%clk 0:00:19]}  hxg6 {[%clk 0:00:40]} 55. Nxg6 {[%clk 0:00:20]}  Nc4 {[%clk 0:00:36]} 56. Kb1 {[%clk 0:00:18]}  Kf6 {[%clk 0:00:33]} 57. Nf4 {[%clk 0:00:17]}  Ne5 {[%clk 0:00:32]} 58. h6 {[%clk 0:00:17]}  Bg8 {[%clk 0:00:30]} 59. h7 {[%clk 0:00:16]}  Bxh7+ {[%clk 0:00:30]} 60. Ka2 {[%clk 0:00:17]}  Nc4 {[%clk 0:00:28]} 61. Ne2 {[%clk 0:00:15]}  Ke5 {[%clk 0:00:28]} 62. Kb3 {[%clk 0:00:15]}  Bd3 {[%clk 0:00:26]} 63. Nc3 {[%clk 0:00:13]}  Kd6 {[%clk 0:00:23]} 64. Na2 {[%clk 0:00:11]}  Kc6 {[%clk 0:00:22]} 65. Nc1 {[%clk 0:00:10]}  Bf1 {[%clk 0:00:21]} 66. Kc3 {[%clk 0:00:11]}  Kb5 {[%clk 0:00:18]} 67. Kb3 {[%clk 0:00:11]}  Ka5 {[%clk 0:00:15]} 68. Na2 {[%clk 0:00:10]}  Nd6 {[%clk 0:00:12]} 69. Kxa3 {[%clk 0:00:10]}  Bd3 {[%clk 0:00:11]} 70. Kb2 {[%clk 0:00:09]}  Kb5 {[%clk 0:00:10]} 71. Kc3 {[%clk 0:00:09]}  Be4 {[%clk 0:00:10]} 72. Nc1 {[%clk 0:00:09]}  Kc6 {[%clk 0:00:10]} 73. Nb3 {[%clk 0:00:08]}  Kd5 {[%clk 0:00:11]} 74. Nxc5 {[%clk 0:00:08]}  Kxc5 {[%clk 0:00:12]} 75. Kd2 {[%clk 0:00:08]}  Kd4 {[%clk 0:00:12]} 76. Ke2 {[%clk 0:00:08]}  Nf5 {[%clk 0:00:12]} 77. Kd2 {[%clk 0:00:09]}  Bf3 {[%clk 0:00:12]} 78. Kc2 {[%clk 0:00:09]}  Be4+ {[%clk 0:00:13]} 79. Kd2 {[%clk 0:00:09]}  Bd3 {[%clk 0:00:13]} 80. Kd1 {[%clk 0:00:09]}  Ke3 {[%clk 0:00:13]} 81. Kc1 {[%clk 0:00:09]}  Nd6 {[%clk 0:00:12]} 82. Kb2 {[%clk 0:00:10]}  Nb5 {[%clk 0:00:12]} 83. Kb3 {[%clk 0:00:09]}  Kd4 {[%clk 0:00:12]} 84. Kb2 {[%clk 0:00:09]}  Kc4 {[%clk 0:00:12]} 85. Ka2 {[%clk 0:00:08]}  Kc3 {[%clk 0:00:12]} 86. Ka1 {[%clk 0:00:08]}  Nd4 {[%clk 0:00:11]} 87. Ka2 {[%clk 0:00:09]}  Nb3 {[%clk 0:00:11]} 88. Ka3 {[%clk 0:00:09]}  Bb1 {[%clk 0:00:12]} 89. Ka4 {[%clk 0:00:09]}  Nd4 {[%clk 0:00:12]} 90. Ka3 {[%clk 0:00:09]}  Nb5+ {[%clk 0:00:12]} 91. Ka4 {[%clk 0:00:10]}  Kc4 {[%clk 0:00:13]} 92. Ka5 {[%clk 0:00:10]}  Kc5 {[%clk 0:00:13]} 93. Ka4 {[%clk 0:00:10]}  Bc2+ {[%clk 0:00:14]} 94. Ka5 {[%clk 0:00:11]}  Bb3 {[%clk 0:00:15]} 95. Ka6 {[%clk 0:00:11]}  Nd6 {[%clk 0:00:15]} 96. Ka5 {[%clk 0:00:11]}  Nb7+ {[%clk 0:00:15]} 97. Ka6 {[%clk 0:00:11]}  Kc6 {[%clk 0:00:16]} 98. Ka7 {[%clk 0:00:12]}  Kc7 {[%clk 0:00:17]} 99. Ka6 {[%clk 0:00:11]}  Bc4+ {[%clk 0:00:18]} 100. Ka7 {[%clk 0:00:12]}  Bb5 {[%clk 0:00:16]} 101. Ka8 {[%clk 0:00:12]}  Nd6 {[%clk 0:00:17]} 102. Ka7 {[%clk 0:00:12]}  Nc8+ {[%clk 0:00:18]} 103. Ka8 {[%clk 0:00:12]}  Bc6# {[%clk 0:00:19]} 0-1


[Site "https://www.chess.com"]

[Event "Titled Tuesday Blitz July 4 Early 2023"]
[White "Janaszak, Dawid"]
[Black "Eynullayev, Atilla"]
[WhiteFideId "1119206"]
[BlackFideId "13413570"]
[WhiteElo "2582"]
[BlackElo "2484"]
[Result "1-0"]
[Round "9"]
[TimeControl "180+2"]
[Date "2023.07.04"]
[WhiteClock "0:01:45"]
[BlackClock "0:00:04"]
[Board "86"]

1. e4 {[%clk 0:03:00]}  c5 {[%clk 0:03:00]} 2. Nc3 {[%clk 0:03:00]}  e6 {[%clk 0:03:00]} 3. Nge2 {[%clk 0:02:59]}  d5 {[%clk 0:02:58]} 4. exd5 {[%clk 0:02:59]}  exd5 {[%clk 0:02:59]} 5. d4 {[%clk 0:03:00]}  Nc6 {[%clk 0:02:58]} 6. g3 {[%clk 0:03:00]}  Nf6 {[%clk 0:02:58]} 7. Bg2 {[%clk 0:03:00]}  cxd4 {[%clk 0:02:59]} 8. Nxd4 {[%clk 0:03:01]}  Bc5 {[%clk 0:02:59]} 9. Nb3 {[%clk 0:02:57]}  Bb6 {[%clk 0:02:53]} 10. Nxd5 {[%clk 0:02:54]}  Nxd5 {[%clk 0:02:39]} 11. Qxd5 {[%clk 0:02:52]}  Qxd5 {[%clk 0:01:42]} 12. Bxd5 {[%clk 0:02:53]}  Bh3 {[%clk 0:01:21]} 13. Bxc6+ {[%clk 0:02:49]}  bxc6 {[%clk 0:01:18]} 14. Be3 {[%clk 0:02:49]}  Bxe3 {[%clk 0:01:09]} 15. fxe3 {[%clk 0:02:49]}  O-O-O {[%clk 0:01:10]} 16. Rd1 {[%clk 0:02:43]}  Rde8 {[%clk 0:00:47]} 17. Rd3 {[%clk 0:02:43]}  Re5 {[%clk 0:00:46]} 18. Kd2 {[%clk 0:02:37]}  Rhe8 {[%clk 0:00:41]} 19. Re1 {[%clk 0:02:37]}  Kc7 {[%clk 0:00:37]} 20. Nd4 {[%clk 0:02:30]}  a6 {[%clk 0:00:34]} 21. Rc3 {[%clk 0:02:28]}  c5 {[%clk 0:00:24]} 22. b4 {[%clk 0:02:27]}  Kd6 {[%clk 0:00:19]} 23. bxc5+ {[%clk 0:02:27]}  Rxc5 {[%clk 0:00:20]} 24. Rxc5 {[%clk 0:02:24]}  Kxc5 {[%clk 0:00:21]} 25. Rb1 {[%clk 0:02:25]}  Bg2 {[%clk 0:00:16]} 26. Rb3 {[%clk 0:02:20]}  Be4 {[%clk 0:00:15]} 27. Rc3+ {[%clk 0:02:20]}  Kd6 {[%clk 0:00:15]} 28. Ra3 {[%clk 0:02:19]}  Ra8 {[%clk 0:00:16]} 29. c4 {[%clk 0:02:18]}  Kc5 {[%clk 0:00:11]} 30. Kc3 {[%clk 0:02:18]}  a5 {[%clk 0:00:12]} 31. Ra4 {[%clk 0:02:11]}  g6 {[%clk 0:00:08]} 32. Nb3+ {[%clk 0:02:09]}  Kc6 {[%clk 0:00:07]} 33. Rxa5 {[%clk 0:02:01]}  Rd8 {[%clk 0:00:08]} 34. Nd4+ {[%clk 0:01:55]}  Kb6 {[%clk 0:00:08]} 35. Rb5+ {[%clk 0:01:54]}  Ka6 {[%clk 0:00:08]} 36. Re5 {[%clk 0:01:54]}  f5 {[%clk 0:00:08]} 37. Re7 {[%clk 0:01:50]}  Rb8 {[%clk 0:00:06]} 38. Nb3 {[%clk 0:01:44]}  Rd8 {[%clk 0:00:04]} 39. Nc5+ {[%clk 0:01:45]} 1-0


[Site "https://www.chess.com"]